bitfinex/quotes_ETHUSD_20250630
["timestamp","ask_amount","ask_price","bid_price","bid_amount"]
[1751305926540,0.7501796,2485.3,2485.2,5.14814432]
[1751305926745,0.7501796,2485.3,2485.2,11.85614432]
[1751305929107,0.7501796,2485.3,2485.2,21.85614432]
[1751305929328,2.096,2486.0,2485.6,4.02304889]
[1751305929547,2.096,2486.0,2485.9,0.2008]
[1751305929834,6.11852614,2486.0,2485.9,0.2008]
[1751305930207,7.13261827,2486.0,2485.9,0.2008]
[1751305931005,6.11852614,2486.0,2485.9,0.2008]
[1751305931706,4.02248749,2486.1,2485.9,0.2008]
[1751305932102,4.02252614,2486.0,2485.9,0.2008]
[1751305932718,4.78012614,2486.0,2485.9,0.2008]
[1751305933246,4.79012614,2486.0,2485.9,0.2008]
[1751305933456,5.8809875,2486.0,2485.9,0.2008]
[1751305940862,7.2133875,2486.0,2485.9,0.2008]
[1751305942473,7.9879875,2486.0,2485.9,0.2008]
[1751305943659,4.02349722,2485.4,2485.3,1.18771916]
[1751305943866,4.02323856,2485.6,2485.3,1.18771916]
[1751305944070,4.02299581,2485.8,2485.3,1.38851916]
[1751305944239,3.96546136,2486.0,2485.5,0.2008]
[1751305944240,4.02314384,2485.7,2485.5,0.2008]
[1751305944429,4.02314384,2485.7,2485.4,1.18771916]
[1751305944626,4.02294434,2485.8,2485.6,0.2008]
[1751305945462,4.02301162,2485.7,2485.6,0.2008]
[1751305946157,4.02294304,2485.8,2485.6,0.2008]
[1751305946544,4.02301162,2485.7,2485.6,0.2008]
[1751305949166,4.02293329,2485.8,2485.6,0.2008]
[1751305949327,4.0228031,2485.9,2485.6,1.019]
[1751305949743,4.02285981,2485.8,2485.6,0.8182]
[1751305950273,4.02301162,2485.7,2485.6,0.8182]
[1751305950634,4.02301162,2485.7,2485.6,1.019]
[1751305950852,4.02301162,2485.7,2485.6,0.2008]
[1751305951966,4.02296758,2485.8,2485.7,0.7912]
[1751305952338,4.02278785,2485.9,2485.7,0.7912]
[1751305952863,4.02278785,2485.9,2485.8,0.2008]
[1751305953036,5.03732581,2485.9,2485.8,0.2008]
[1751305958281,4.02278785,2485.9,2485.8,0.2008]
[1751305961862,0.01,2486.0,2485.8,0.2008]
[1751305962063,0.01,2486.0,2485.9,0.7916]
[1751305962266,0.01,2486.0,2485.9,4.81428796]
[1751305967101,0.01,2486.0,2485.9,14.81428796]
[1751305967805,0.01,2486.0,2485.9,18.27181608]
[1751305968380,0.01,2486.0,2485.9,19.85719931]
[1751305970189,0.01,2486.0,2485.9,21.50528796]
[1751305971434,0.01,2486.0,2485.9,22.70015624]
[1751305973131,0.01,2486.0,2485.9,18.67746828]
[1751305973334,4.03252614,2486.0,2485.8,1.39566828]
[1751305973497,0.41325261,2486.0,2485.8,0.2008]
[1751305974115,0.01,2486.0,2485.8,0.2008]
[1751305976120,4.0325681,2486.0,2485.8,0.2008]
[1751305976306,4.02268796,2485.9,2485.8,0.2008]
[1751305976514,0.01,2486.0,2485.8,6.8898]
[1751305979018,4.03258931,2486.0,2485.8,6.8898]
[1751305979346,0.01,2486.0,2485.8,6.8898]
[1751305981153,4.02268796,2485.9,2485.8,0.2008]
[1751305981356,0.89146811,2486.0,2485.8,6.8878]
[1751305981560,0.01,2486.0,2485.8,6.8878]
[1751305982913,0.01,2486.0,2485.8,10.9106322]
[1751305983114,0.01,2486.0,2485.9,4.83728796]
[1751305984241,0.01,2486.0,2485.9,0.8146]
[1751305984667,0.01,2486.0,2485.9,4.83728796]
[1751305985446,0.01,2486.0,2485.9,6.685]
[1751305985837,4.91869968,2486.0,2485.8,0.2008]
[1751305986052,4.91869968,2486.0,2485.9,6.685]
[1751305986261,0.89613501,2486.0,2485.9,6.685]
[1751305986437,0.01,2486.0,2485.9,6.685]
[1751305987432,0.01,2486.0,2485.9,10.70768796]
[1751305987628,0.01,2486.0,2485.9,11.51828796]
[1751305989369,0.01,2486.0,2485.9,12.71315624]
[1751305989729,0.01,2486.0,2485.9,19.97113278]
[1751305989930,0.01,2486.0,2485.9,32.54913426]
[1751305990565,0.01,2486.0,2485.9,32.93964921]
[1751305996775,0.01,2486.0,2485.9,31.35426598]
[1751305998043,0.01,2486.0,2485.9,32.95044289]
[1751305998454,0.01,2486.0,2485.9,32.94644289]
[1751306001161,0.01,2486.0,2485.9,31.35026598]
[1751306002861,0.01,2486.0,2485.9,17.41128944]
[1751306003191,0.01,2486.0,2485.9,24.09028944]
[1751306003378,0.01,2486.0,2485.9,25.68603772]
[1751306003775,0.01,2486.0,2485.9,18.19643772]
[1751306003962,0.01,2486.0,2485.9,22.29643624]
[1751306004171,0.01,2486.0,2485.9,11.59574828]
[1751306004491,0.01,2486.0,2485.9,16.678]
[1751306004662,0.01,2486.0,2485.9,20.70068796]
[1751306004866,0.01,2486.0,2485.9,14.02268796]
[1751306005087,0.01,2486.0,2485.9,21.89764633]
[1751306005458,0.01,2486.0,2485.9,20.70068796]
[1751306007378,0.01,2486.0,2485.9,25.74936246]
[1751306008294,0.01,2486.0,2485.9,26.51936246]
[1751306008659,0.00763136,2486.0,2485.9,26.51936246]
[1751306009370,0.00763136,2486.0,2485.9,15.0486745]
[1751306009570,0.00763136,2486.0,2485.9,18.27274828]
[1751306009788,0.00763136,2486.0,2485.9,22.29543624]
[1751306012510,0.00763136,2486.0,2485.9,18.27274828]
[1751306012675,0.00763136,2486.0,2485.8,1.79654828]
[1751306013003,0.00763136,2486.0,2485.9,1.19754731]
[1751306013203,4.8334575,2486.0,2485.9,7.87254731]
[1751306014180,4.8334575,2486.0,2485.9,6.675]
[1751306014367,4.8334575,2486.0,2485.8,1.39834731]
[1751306014368,4.02268796,2485.9,2485.8,1.39834731]
[1751306014565,4.83354479,2486.0,2485.8,8.07334731]
[1751306014765,4.02268796,2485.9,2485.8,0.2008]
[1751306015071,4.02268796,2485.9,2485.8,6.8758]
[1751306015692,4.02268796,2485.9,2485.8,0.2008]
[1751306016088,4.02268796,2485.9,2485.8,6.8758]
[1751306017823,4.02268796,2485.9,2485.8,6.8748]
[1751306018119,4.83351223,2486.0,2485.8,6.8748]
[1751306018488,4.02268796,2485.9,2485.8,6.8748]
[1751306020921,4.83354899,2486.0,2485.8,6.8748]
[1751306021323,0.81093136,2486.0,2485.8,6.8748]
[1751306022636,0.00763136,2486.0,2485.8,10.89764531]
[1751306022829,0.00763136,2486.0,2485.8,6.8748]
[1751306023130,0.00763136,2486.0,2485.9,4.02268796]
[1751306023837,0.00763136,2486.0,2485.8,12.47063966]
[1751306025195,0.00763136,2486.0,2485.8,8.44785761]
[1751306025399,4.80428796,2485.9,2485.8,0.2008]
[1751306025620,4.80428796,2485.9,2485.8,6.8728]
[1751306026831,4.80428796,2485.9,2485.8,6.8718]
[1751306027198,0.7816,2485.9,2485.8,6.8718]
[1751306028120,0.7816,2485.9,2485.8,0.2008]
[1751306028295,4.80428796,2485.9,2485.8,0.2008]
[1751306028493,5.68774656,2485.9,2485.8,0.2008]
[1751306028693,4.80428796,2485.9,2485.8,0.2008]
[1751306035439,4.03023004,2486.0,2485.8,0.2008]
[1751306035937,4.02268796,2485.9,2485.8,0.2008]
[1751306037718,4.79448796,2485.9,2485.8,0.2008]
[1751306039241,0.7718,2485.9,2485.8,0.2008]
[1751306039442,0.00763136,2486.0,2485.8,0.2008]
[1751306039738,0.00763136,2486.0,2485.8,5.51144045]
[1751306039943,0.00763136,2486.0,2485.8,1.48861898]
[1751306040139,0.00763136,2486.0,2485.8,5.51137557]
[1751306040731,0.00763136,2486.0,2485.8,1.48861898]
[1751306041042,4.03019351,2486.0,2485.8,0.2008]
[1751306041743,4.02268796,2485.9,2485.8,0.2008]
[1751306043021,0.00763136,2486.0,2485.8,0.2008]
[1751306043219,4.03016942,2486.0,2485.8,0.2008]
[1751306044123,4.02268796,2485.9,2485.8,0.2008]
[1751306044321,0.00763136,2486.0,2485.8,0.2008]
[1751306044620,4.03022763,2486.0,2485.8,0.2008]
[1751306045643,0.00763136,2486.0,2485.8,0.2008]
[1751306045811,0.00763136,2486.0,2485.8,2.76677356]
[1751306046011,0.00763136,2486.0,2485.8,6.7896148]
[1751306046915,0.00763136,2486.0,2485.9,4.02268796]
[1751306049511,0.00763136,2486.0,2485.9,23.22841181]
[1751306049739,0.00763136,2486.0,2485.9,22.0308645]
[1751306049947,0.00763136,2486.0,2485.9,25.61943223]
[1751306050216,0.00763136,2486.0,2485.9,26.81712485]
[1751306052329,0.00763136,2486.0,2485.9,19.55914831]
[1751306052530,0.00763136,2486.0,2485.9,18.36145569]
[1751306053962,0.00763136,2486.0,2485.9,25.02445569]
[1751306056661,0.00763136,2486.0,2485.9,24.27425569]
[1751306056960,0.00763136,2486.0,2485.9,13.58856773]
[1751306057159,0.00763136,2486.0,2485.9,24.27325569]
[1751306057472,0.00763136,2486.0,2485.9,3.58856773]
[1751306057641,4.8179575,2486.0,2485.9,6.662]
[1751306058041,4.02268796,2485.9,2485.8,0.2008]
[1751306058237,4.02268796,2485.9,2485.8,6.8618]
[1751306060760,4.02268796,2485.9,2485.8,6.8608]
[1751306061563,4.02268796,2485.9,2485.8,0.2008]
[1751306061770,5.69905633,2485.9,2485.8,0.2008]
[1751306062068,4.81547347,2485.6,2485.5,7.85769262]
[1751306062229,4.81547347,2485.6,2485.5,1.19769262]
[1751306062430,4.81547347,2485.6,2485.5,1.39849262]
[1751306062645,4.81547347,2485.6,2485.5,1.79654828]
[1751306062839,5.69932551,2485.6,2485.5,1.39851496]
[1751306064247,4.81547347,2485.6,2485.5,1.39851496]
[1751306066070,4.81547347,2485.6,2485.5,0.2008]
[1751306068137,14.81547347,2485.6,2485.5,0.2008]
[1751306068464,14.81547347,2485.6,2485.2,1.35453826]
[1751306068465,4.02365911,2485.3,2485.2,0.1568233]
[1751306068687,4.85165911,2485.3,2485.2,0.3576233]
[1751306068857,16.67167616,2485.3,2485.2,0.3576233]
[1751306074487,14.02365911,2485.3,2485.2,0.3576233]
[1751306075488,6.09053489,2485.4,2485.2,0.3576233]
[1751306075489,2.067,2485.4,2485.2,0.3576233]
[1751306075660,0.779,2485.7,2485.2,0.3576233]
[1751306075862,4.02340782,2485.5,2485.2,0.1568233]
[1751306076072,4.02324012,2485.6,2485.2,0.65215595]
[1751306076262,4.02324012,2485.6,2485.4,0.2008]
[1751306077591,4.02333534,2485.5,2485.4,0.2008]
[1751306085104,4.77383534,2485.5,2485.4,0.2008]
[1751306085608,4.77383534,2485.5,2485.2,0.3576233]
[1751306085609,4.77415911,2485.3,2485.2,0.3576233]
[1751306085806,8.84905989,2485.3,2485.2,0.3576233]
[1751306092776,8.09855989,2485.3,2485.2,0.3576233]
[1751306092976,0.765,2485.5,2485.2,0.3576233]
[1751306093176,4.02357536,2485.4,2485.2,0.3576233]
[1751306093390,4.02339065,2485.5,2485.4,0.2008]
[1751306094012,6.08523486,2485.6,2485.4,0.2008]
[1751306094320,2.062,2485.6,2485.4,0.2008]
[1751306094491,10.0,2485.7,2485.4,0.2008]
[1751306094832,2.062,2485.8,2485.4,4.22424979]
[1751306095007,2.062,2485.8,2485.6,0.2008]
[1751306095008,6.08485314,2485.8,2485.6,0.2008]
[1751306095310,6.08483022,2485.9,2485.6,0.2008]
[1751306095682,4.02285964,2485.8,2485.5,0.7596]
[1751306095882,4.02285964,2485.8,2485.7,0.2008]
[1751306098686,2.062,2485.9,2485.7,0.2008]
[1751306098987,6.0847639,2485.9,2485.7,0.2008]
[1751306099388,4.02284978,2485.8,2485.7,0.2008]
[1751306102291,6.08384978,2485.8,2485.7,0.2008]
[1751306105716,4.02284978,2485.8,2485.7,0.2008]
[1751306105900,6.08384978,2485.8,2485.7,0.2008]
[1751306107838,7.91786689,2485.8,2485.7,0.2008]
[1751306108710,5.85686689,2485.8,2485.7,0.2008]
[1751306109041,7.91786689,2485.8,2485.7,0.2008]
[1751306110918,5.85686689,2485.8,2485.7,0.2008]
[1751306111249,7.91786689,2485.8,2485.7,0.2008]
[1751306111816,5.03426689,2485.8,2485.7,0.2008]
[1751306112011,7.09526689,2485.8,2485.7,0.2008]
[1751306112518,6.08384978,2485.8,2485.7,0.2008]
[1751306113855,2.061,2485.8,2485.7,0.2008]
[1751306114022,4.02283124,2485.9,2485.7,0.2008]
[1751306114355,2.061,2485.8,2485.7,0.2008]
[1751306114655,4.02269684,2485.9,2485.7,0.2008]
[1751306114867,6.08369684,2485.9,2485.7,0.2008]
[1751306115522,4.02269684,2485.9,2485.7,0.2008]
[1751306115852,2.061,2485.9,2485.7,0.2008]
[1751306116548,6.08375504,2485.9,2485.7,0.2008]
[1751306116760,2.061,2485.9,2485.7,0.2008]
[1751306117919,2.06863136,2486.0,2485.8,0.7938]
[1751306118242,2.06863136,2486.0,2485.9,0.2008]
[1751306119730,2.06863136,2486.0,2485.9,0.70255361]
[1751306120227,2.06863136,2486.0,2485.9,0.2008]
[1751306121168,6.0911575,2486.0,2485.9,0.2008]
[1751306122423,2.06863136,2486.0,2485.9,0.2008]
[1751306123074,0.00763136,2486.0,2485.9,0.2008]
[1751306125472,0.00763136,2486.0,2485.9,0.9787]
[1751306125680,0.00763136,2486.0,2485.9,5.50154234]
[1751306125843,0.00763136,2486.0,2485.9,1.47885438]
[1751306126038,0.00763136,2486.0,2485.9,5.50154234]
[1751306128772,0.00763136,2486.0,2485.9,13.3382573]
[1751306130376,0.00763136,2486.0,2485.9,12.14054234]
[1751306130548,0.00763136,2486.0,2485.9,13.3382573]
[1751306131147,0.00763136,2486.0,2485.9,12.13954234]
[1751306132987,0.00763136,2486.0,2485.9,30.59523384]
[1751306133488,0.00763136,2486.0,2485.9,23.3372573]
[1751306136300,0.00763136,2486.0,2485.9,22.13954234]
[1751306138592,0.00763136,2486.0,2485.9,23.3372573]
[1751306138794,0.00763136,2486.0,2485.9,22.13954234]
[1751306141202,0.00763136,2486.0,2485.9,23.33382684]
[1751306141370,0.00763136,2486.0,2485.9,23.32982684]
[1751306142073,0.00763136,2486.0,2485.9,16.69582684]
[1751306142278,0.00763136,2486.0,2485.9,23.32982684]
[1751306143819,0.00763136,2486.0,2485.9,22.13554234]
[1751306145424,0.00763136,2486.0,2485.9,15.50154234]
[1751306145626,0.00763136,2486.0,2485.9,22.13354234]
[1751306146502,0.00763136,2486.0,2485.9,4.72364234]
[1751306146697,0.00763136,2486.0,2485.9,1.39598841]
[1751306147010,4.8250575,2486.0,2485.9,6.8328]
[1751306148094,0.80253136,2486.0,2485.9,6.8328]
[1751306149021,4.8250575,2486.0,2485.9,6.8328]
[1751306149325,4.8250575,2486.0,2485.9,0.2008]
[1751306149620,5.70979985,2486.0,2485.9,6.8318]
[1751306149924,5.70979985,2486.0,2485.9,0.2008]
[1751306150858,0.00763136,2486.0,2485.9,0.2008]
[1751306151005,0.01,2486.5,2486.4,14.02187902]
[1751306151340,0.01,2487.0,2486.4,14.65427654]
[1751306151540,0.01,2487.0,2486.7,4.02130423]
[1751306151738,0.01,2487.0,2486.9,4.2218704]
[1751306151901,0.01,2487.0,2486.9,4.9728704]
[1751306152110,0.01,2487.0,2486.9,14.9728704]
[1751306152431,2.40015531,2488.5,2488.4,4.01864651]
[1751306152625,4.01863451,2489.2,2488.6,10.0]
[1751306152626,2.40671448,2488.9,2488.6,10.0]
[1751306152834,0.01,2489.2,2489.0,14.21847778]
[1751306153018,0.01,2489.2,2489.0,28.80964398]
[1751306153220,0.01,2489.2,2489.0,0.86698966]
[1751306153438,0.01,2489.2,2489.0,4.21847778]
[1751306153641,0.01,2489.2,2489.0,20.88447778]
[1751306153841,0.01,2489.6,2489.5,4.01687085]
[1751306154023,0.01,2489.6,2489.5,28.70064739]
[1751306154225,0.01,2489.6,2489.5,29.49104739]
[1751306154440,0.01,2489.6,2489.5,30.41152227]
[1751306154740,0.01,2489.6,2489.5,26.39465142]
[1751306155102,0.01,2489.6,2489.5,27.34300527]
[1751306155302,0.01,2489.6,2489.5,3.41002873]
[1751306155639,10.0,2489.5,2488.9,1.19518841]
[1751306155840,10.0,2489.5,2488.6,1.19518841]
[1751306155841,4.01751637,2489.1,2488.6,1.19518841]
[1751306156002,4.01751637,2489.1,2488.7,0.94647182]
[1751306156205,2.07,2489.4,2488.8,0.94630323]
[1751306156206,4.01795752,2488.9,2488.8,0.94630323]
[1751306156402,4.41963495,2488.9,2488.8,0.94492905]
[1751306156647,4.01832355,2488.6,2488.5,6.725]
[1751306156821,4.01832355,2488.6,2488.5,7.67005707]
[1751306157017,4.01832355,2488.6,2488.5,8.86524548]
[1751306157212,4.01832355,2488.6,2488.5,2.14024548]
[1751306157408,4.82197295,2488.6,2488.5,0.94505707]
[1751306157837,4.01832355,2488.6,2488.5,0.94505707]
[1751306158136,4.01832355,2488.6,2488.5,2.14024548]
[1751306158350,4.01832355,2488.6,2488.5,0.94505707]
[1751306160450,2.8361,2488.8,2488.2,6.726]
[1751306160632,4.01880802,2488.3,2488.2,6.726]
[1751306161224,4.01888734,2488.3,2488.1,6.721]
[1751306161632,0.40179575,2488.9,2488.2,0.94240884]
[1751306161953,0.40179575,2488.9,2488.3,0.94217394]
[1751306161954,4.01851247,2488.5,2488.3,0.94217394]
[1751306162113,4.01863483,2488.5,2488.1,6.721]
[1751306162313,4.01862465,2488.5,2488.2,0.94203638]
[1751306162541,4.01896953,2488.2,2488.1,6.721]
[1751306162744,4.42086648,2488.2,2488.1,0.94216274]
[1751306163076,4.01961572,2487.8,2487.7,7.89942297]
[1751306163275,4.0188346,2488.3,2487.7,7.89942297]
[1751306163276,4.01811258,2488.8,2487.8,0.8118]
[1751306163580,4.83793664,2490.1,2490.0,4.01606425]
[1751306163581,0.01,2490.1,2490.0,4.01606425]
[1751306163725,0.01,2490.1,2490.0,23.93525413]
[1751306163926,0.01,2490.1,2490.0,21.76229181]
[1751306164129,0.01,2490.1,2490.0,10.0]
[1751306164439,0.01,2490.1,2489.4,10.0]
[1751306164844,0.01,2490.1,2489.6,1.17842297]
[1751306165167,0.01,2490.1,2489.6,6.954]
[1751306165340,0.01,2490.1,2489.9,4.01610976]
[1751306165539,0.01,2490.1,2489.7,4.01654817]
[1751306165540,0.01,2490.1,2489.8,4.01627955]
[1751306165740,0.01,2490.1,2490.0,0.2]
[1751306165945,0.01,2490.1,2490.0,4.21606425]
[1751306166281,0.01,2490.1,2490.0,15.03929262]
[1751306166483,0.01,2490.1,2490.0,22.77399262]
[1751306166650,0.01,2490.1,2490.0,11.95176425]
[1751306166849,0.01,2490.1,2490.0,11.17006425]
[1751306167208,0.01,2490.1,2490.0,21.17006425]
[1751306169069,0.01,2490.1,2490.0,22.10643205]
[1751306169270,0.01,2490.1,2490.0,21.17006425]
[1751306169592,0.01,2490.1,2490.0,22.10580553]
[1751306169792,0.01,2490.1,2490.0,1.13574128]
[1751306169961,4.02590297,2490.1,2490.0,0.2]
[1751306170300,1.03405991,2490.1,2490.0,0.2]
[1751306170662,4.01488033,2490.8,2490.0,0.2]
[1751306170861,0.59872354,2492.4,2492.3,4.01235806]
[1751306171069,0.59872354,2492.4,2491.0,0.5]
[1751306171070,0.59872354,2492.4,2491.7,1.4972645]
[1751306171270,0.0803225,2492.6,2492.2,10.0]
[1751306171487,0.0803225,2492.6,2492.3,7.344]
[1751306171694,0.0803225,2492.6,2492.2,10.0]
[1751306171893,0.0803225,2492.6,2491.8,0.8184]
[1751306172094,0.0803225,2492.6,2491.9,12.28164403]
[1751306172297,0.0803225,2492.6,2492.1,4.01265307]
[1751306172595,0.0803225,2492.6,2492.3,4.01233671]
[1751306173204,0.0803225,2492.6,2492.2,7.333]
[1751306173205,0.0803225,2492.6,2492.4,4.01204248]
[1751306173701,0.0803225,2492.6,2492.5,4.0120361]
[1751306173869,0.0803225,2492.6,2492.5,11.3360361]
[1751306175401,0.054,2493.9,2492.6,10.0]
[1751306175402,4.01020738,2493.7,2492.6,10.0]
[1751306175586,0.054,2493.9,2493.2,4.01080164]
[1751306175794,4.06383669,2493.9,2493.3,11.33073236]
[1751306176091,0.054,2493.9,2493.3,7.32]
[1751306176295,4.06381804,2493.9,2493.3,11.33064638]
[1751306176598,0.01,2493.6,2493.4,7.318]
[1751306176799,0.01,2493.6,2493.4,11.32856055]
[1751306176995,0.01,2493.6,2493.4,7.318]
[1751306178001,4.00918281,2494.3,2493.4,7.318]
[1751306178002,0.2171458,2495.0,2493.6,4.77516628]
[1751306178205,0.29450818,2496.1,2495.0,0.5545]
[1751306178411,0.29450818,2496.1,2495.1,7.419]
[1751306178579,4.00641735,2496.0,2495.2,4.00758546]
[1751306178784,0.29450818,2496.1,2495.2,4.00758546]
[1751306178785,0.29450818,2496.1,2495.3,4.00747692]
[1751306178966,0.29450818,2496.1,2495.8,4.00669079]
[1751306179172,0.29450818,2496.1,2496.0,4.00641025]
[1751306179420,8.20146426,2498.1,2496.0,4.00641025]
[1751306179421,4.10765015,2499.0,2496.1,11.60134755]
[1751306179700,4.00479738,2497.1,2496.2,20.8403]
[1751306179877,4.00416433,2497.4,2496.2,20.8403]
[1751306180076,10.0,2497.8,2496.2,10.8233]
[1751306180287,4.00286438,2498.3,2496.4,10.0]
[1751306180495,4.00342258,2497.9,2496.8,4.00511539]
[1751306180693,4.00348647,2497.9,2496.9,7.527]
[1751306180897,4.00428486,2497.4,2497.0,7.525]
[1751306181080,2.509,2497.9,2497.4,0.2]
[1751306181288,4.2211498,2497.5,2497.4,0.2]
[1751306181595,4.2211498,2497.5,2497.0,0.55]
[1751306181596,4.0043598,2497.3,2497.0,0.55]
[1751306181914,4.1211498,2497.5,2497.4,0.2]
[1751306182078,4.1211498,2497.5,2497.2,0.2]
[1751306182278,4.1211498,2497.5,2497.4,0.75]
[1751306182279,4.12120967,2497.5,2497.4,0.75]
[1751306182480,4.12120967,2497.5,2497.4,0.2]
[1751306182696,4.93371532,2497.5,2497.4,0.2]
[1751306182921,4.12120967,2497.5,2497.4,0.18236864]
[1751306183103,0.1171458,2497.5,2497.1,7.65]
[1751306183280,0.1171458,2497.5,2496.6,1.202972]
[1751306183613,0.1171458,2497.5,2496.9,0.55]
[1751306183786,4.12124677,2497.5,2496.9,0.55]
[1751306183994,0.1171458,2497.5,2497.1,0.55]
[1751306184198,0.1171458,2497.5,2497.3,11.3206]
[1751306184610,0.1171458,2497.5,2497.3,14.77491624]
[1751306184828,0.40065226,2499.7,2498.9,0.5545]
[1751306185126,0.74235588,2500.0,2498.9,22.33926077]
[1751306185329,4.00032701,2499.8,2498.9,22.88926077]
[1751306185478,4.00036872,2499.8,2498.9,17.70685017]
[1751306185678,0.74235588,2500.0,2498.9,22.92926077]
[1751306185880,0.74235588,2500.0,2499.0,10.0]
[1751306186116,4.00165397,2499.0,2498.8,1.201897]
[1751306186378,0.55,2499.4,2497.7,1.202499]
[1751306186604,4.00313446,2498.1,2497.7,1.202499]
[1751306186805,4.00244604,2498.5,2497.6,7.867]
[1751306186992,4.00244604,2498.5,2496.5,21.9652819]
[1751306186993,14.79108108,2498.7,2497.3,0.8039]
[1751306187196,14.79108108,2498.7,2496.9,4.00490694]
[1751306187197,4.00387251,2497.6,2496.9,4.00490694]
[1751306187552,4.00288207,2498.2,2497.0,0.90655721]
[1751306187691,4.00377088,2497.7,2497.0,11.90971707]
[1751306188011,4.40406168,2497.7,2497.0,7.905]
[1751306188213,4.00384368,2497.6,2496.5,9.63]
[1751306188515,4.00384368,2497.6,2496.4,7.905]
[1751306188516,4.00453414,2497.2,2496.4,7.905]
[1751306188682,4.00483849,2497.0,2496.4,11.91068184]
[1751306188896,4.00483849,2497.0,2496.4,11.90668184]
[1751306189428,4.00506651,2496.9,2496.4,7.901]
[1751306189741,3.94312683,2500.1,2497.2,0.784]
[1751306190032,4.00080016,2499.5,2497.4,10.0]
[1751306190196,0.47751002,2499.4,2497.8,0.55]
[1751306190392,4.00265964,2498.4,2497.8,4.55342395]
[1751306190693,2.878,2498.6,2497.1,4.00452383]
[1751306190916,4.00168859,2499.0,2497.4,10.0]
[1751306191137,4.0030325,2498.2,2497.5,4.00398192]
[1751306191448,4.00311012,2498.1,2497.4,14.00410589]
[1751306191612,3.35559886,2498.9,2497.3,10.0]
[1751306191807,4.00289564,2498.2,2497.5,4.004004]
[1751306192028,4.80345217,2498.2,2497.6,4.00375898]
[1751306192228,4.80345217,2498.2,2497.4,4.00416433]
[1751306192229,4.00317397,2498.1,2497.4,4.55416125]
[1751306192433,4.00308036,2498.1,2497.4,4.00416125]
[1751306192732,4.00338324,2497.9,2497.4,4.00416125]
[1751306192903,4.00381937,2497.7,2497.2,0.784]
[1751306193104,4.00381937,2497.7,2496.9,4.00493117]
[1751306193105,4.00304231,2498.1,2497.8,0.2]
[1751306193307,4.8035556,2498.2,2497.6,0.2]
[1751306193508,4.00396928,2497.6,2497.0,11.99075654]
[1751306193709,4.00427298,2497.4,2497.0,7.986]
[1751306193910,4.00384368,2497.6,2497.5,0.2]
[1751306194102,4.00384368,2497.6,2496.8,4.80644213]
[1751306194103,4.00425752,2497.4,2496.8,4.80644213]
[1751306194299,4.0045017,2497.2,2496.8,0.8014]
[1751306194499,6.89042467,2497.9,2496.9,7.975]
[1751306194500,0.01,2497.9,2496.9,7.975]
[1751306194748,0.01,2497.9,2497.7,4.00359175]
[1751306195046,0.01,2497.9,2497.5,4.00385608]
[1751306195243,0.01,2497.9,2497.4,4.55416057]
[1751306195617,0.01,2497.9,2497.5,4.00397259]
[1751306195817,0.01,2497.9,2497.6,4.00383535]
[1751306196135,0.01,2497.9,2497.3,0.55]
[1751306196339,0.01,2497.9,2497.6,4.00383346]
[1751306196547,0.01,2497.9,2497.5,4.00394356]
[1751306196846,0.01,2497.9,2497.5,4.00396797]
[1751306197017,0.01,2497.9,2497.3,0.55]
[1751306197225,4.00356101,2497.8,2497.2,12.04247679]
[1751306197448,0.4013561,2497.7,2497.2,12.04247679]
[1751306197628,0.4013561,2497.7,2497.3,4.00420643]
[1751306197826,0.4013561,2497.7,2497.2,22.04240238]
[1751306198150,0.01,2497.9,2497.2,18.038]
[1751306198650,0.01,2497.9,2497.5,4.00391483]
[1751306199354,0.01,2497.9,2497.5,4.00396005]
[1751306199554,0.01,2497.9,2497.4,4.00409888]
[1751306199914,0.01,2497.9,2497.3,12.00027737]
[1751306200119,0.41132198,2497.9,2497.4,4.00408642]
[1751306200311,0.01,2497.9,2497.4,4.00408642]
[1751306200853,4.01344786,2497.9,2497.3,12.00024486]
[1751306201049,0.01,2497.9,2497.3,12.00024486]
[1751306201345,0.01,2497.9,2497.7,4.0036034]
[1751306202566,0.01,2497.9,2497.5,4.00393127]
[1751306202725,0.01,2497.9,2497.8,4.0035231]
[1751306203330,0.8278,2499.7,2498.8,4.00192092]
[1751306203647,4.00093908,2499.5,2498.9,8.016]
[1751306203851,4.0006401,2499.6,2498.9,8.016]
[1751306203852,0.80015792,2499.4,2498.9,8.016]
[1751306204052,3.7038,2499.7,2498.9,8.016]
[1751306204053,0.8278,2499.7,2498.9,8.016]
[1751306204256,4.82837236,2499.7,2499.1,4.00134331]
[1751306204454,4.82837236,2499.7,2499.6,0.2]
[1751306204758,5.71124394,2499.7,2499.6,0.2]
[1751306205329,8.58724394,2499.7,2499.6,0.2]
[1751306206024,8.58724394,2499.7,2498.4,1.16725525]
[1751306206025,4.00154114,2499.1,2498.5,4.00228213]
[1751306206352,4.58667158,2499.7,2498.6,2.09595244]
[1751306206553,4.58667158,2499.7,2498.7,0.92869719]
[1751306206554,4.00151889,2499.1,2498.7,0.92869719]
[1751306206759,4.00160064,2499.0,2498.8,0.92869719]
[1751306206959,4.00160064,2499.0,2498.9,0.92869719]
[1751306207256,0.794,2500.2,2499.0,0.8266]
[1751306207426,0.794,2500.2,2499.1,0.92869719]
[1751306207627,0.005,2499.9,2499.2,0.92869719]
[1751306207822,0.005,2499.9,2499.3,0.9328099]
[1751306208055,0.005,2499.9,2499.4,13.81329117]
[1751306208383,0.005,2499.9,2499.8,4.00032002]
[1751306208654,0.005,2499.9,2499.4,1.554156]
[1751306208823,0.005,2499.9,2499.6,4.00057937]
[1751306209026,0.005,2499.9,2499.7,0.93540537]
[1751306209226,0.005,2499.9,2499.8,2.10119671]
[1751306209860,4.39647827,2499.9,2499.8,2.10119671]
[1751306210157,5.16727827,2499.9,2499.8,0.93540537]
[1751306210548,5.16727827,2499.9,2499.8,2.10119671]
[1751306210950,0.005,2499.9,2499.8,0.93540537]
[1751306211149,0.005,2499.9,2499.8,2.49789527]
[1751306211562,0.005,2499.9,2499.8,0.93540537]
[1751306211866,0.74235588,2500.0,2499.8,0.93540537]
[1751306212162,0.74235588,2500.0,2499.9,0.93540537]
[1751306212458,0.01,2500.9,2499.9,4.05402443]